bitfinex/quotes_ETHUSD_20251206
["timestamp","ask_amount","ask_price","bid_price","bid_amount"]
[1765022891315,0.002,3041.4,3041.3,4.2634676]
[1765022892715,0.002,3041.4,3041.3,4.7610676]
[1765022894714,0.002,3041.4,3041.3,4.2634676]
[1765022894891,0.1173,3041.4,3041.3,3.8070676]
[1765022895291,0.1173,3041.4,3041.2,3.28815004]
[1765022895492,0.054,3041.3,3041.1,4.63113147]
[1765022895720,0.054,3041.3,3041.2,3.28817572]
[1765022897211,0.054,3041.3,3041.1,4.63119669]
[1765022897388,0.054,3041.3,3041.1,4.11219669]
[1765022898825,0.1147,3041.2,3041.0,3.80729783]
[1765022899124,0.0546,3041.1,3041.0,3.80729783]
[1765022900128,0.1173,3041.4,3041.0,3.80729783]
[1765022905030,0.002,3041.4,3041.0,3.80729783]
[1765022907335,0.1173,3041.4,3041.0,3.80729783]
[1765022907706,0.1153,3041.1,3041.0,0.519]
[1765022909137,0.1153,3041.1,3040.7,4.11263496]
[1765022909138,0.2306,3041.1,3040.7,3.28867906]
[1765022909436,0.054,3041.0,3040.7,3.28867906]
[1765022910611,0.1147,3040.8,3040.6,0.519]
[1765022911005,0.1147,3040.8,3040.6,3.8078145]
[1765022912331,0.1147,3040.8,3040.6,0.519]
[1765022912819,0.1153,3041.1,3040.6,0.519]
[1765022913734,0.1153,3041.1,3040.6,3.80782413]
[1765022914350,0.45565068,3041.1,3040.6,0.519]
[1765022914754,0.1153,3041.0,3040.6,0.519]
[1765022916257,0.34035068,3041.1,3040.6,0.519]
[1765022916436,3.74395266,3041.1,3040.6,0.519]
[1765022916841,0.1153,3041.0,3040.6,0.519]
[1765022917043,0.1153,3040.7,3040.4,3.28900446]
[1765022917351,0.1153,3040.7,3040.4,3.28900623]
[1765022917552,0.1153,3041.0,3040.3,3.80812843]
[1765022917759,3.28850011,3040.9,3040.3,3.80812843]
[1765022918164,3.40380011,3040.9,3040.3,3.80812843]
[1765022918336,3.40380011,3040.9,3040.3,0.519]
[1765022918337,3.99174539,3040.9,3040.3,0.519]
[1765022918533,0.1153,3040.4,3040.3,0.519]
[1765022918936,0.1153,3040.4,3040.0,0.001]
[1765022919130,0.1153,3040.6,3040.0,0.001]
[1765022919458,0.1153,3040.6,3040.0,0.82492684]
[1765022919658,0.1153,3040.6,3040.0,4.11433131]
[1765022919954,0.1153,3040.6,3040.1,3.28936541]
[1765022920459,0.1153,3040.6,3040.1,3.77286541]
[1765022923361,3.40416271,3040.6,3040.1,0.4835]
[1765022924362,0.1153,3040.6,3040.1,0.4835]
[1765022925186,3.28869418,3040.8,3040.1,3.77282851]
[1765022925366,0.70324528,3040.9,3040.5,0.4604]
[1765022925367,3.99176717,3040.9,3040.5,0.4604]
[1765022925662,3.9917497,3040.9,3040.6,0.4835]
[1765022925958,3.9917497,3040.9,3040.5,0.4604]
[1765022926164,3.9917497,3040.9,3040.5,0.9439]
[1765022927568,0.1153,3040.6,3040.0,0.001]
[1765022927861,0.519,3040.7,3040.0,0.001]
[1765022928067,0.6343,3040.7,3040.0,0.4845]
[1765022928364,1.48998436,3040.7,3040.0,0.4845]
[1765022928966,0.1153,3040.6,3040.0,0.001]
[1765022929646,6.57786548,3040.5,3040.0,0.001]
[1765022929845,0.1153,3040.1,3040.0,0.001]
[1765022934083,0.2153,3040.1,3040.0,0.001]
[1765022934282,3.61996548,3040.1,3040.0,0.001]
[1765022934575,4.10791076,3040.1,3040.0,0.001]
[1765022934750,4.22321076,3040.1,3040.0,0.001]
[1765022936978,4.32321076,3040.1,3040.0,0.001]
[1765022940868,4.10791076,3040.1,3040.0,0.001]
[1765022941102,4.22321076,3040.1,3040.0,0.001]
[1765022941406,16.40689576,3040.1,3040.0,0.001]
[1765022941899,10.37145376,3040.1,3040.0,0.001]
[1765022942104,8.95498776,3040.1,3040.0,0.001]
[1765022942397,9.64398776,3040.1,3040.0,0.001]
[1765022942758,4.72871476,3040.1,3040.0,0.001]
[1765022943082,4.61341476,3040.1,3040.0,0.001]
[1765022943254,4.72871476,3040.1,3040.0,0.001]
[1765022944676,4.62871476,3040.1,3040.0,0.001]
[1765022944877,4.51341476,3040.1,3040.0,0.001]
[1765022945278,5.03241476,3040.1,3040.0,0.001]
[1765022946374,4.91711476,3040.1,3040.0,0.001]
[1765022946772,5.03241476,3040.1,3040.0,0.001]
[1765022947564,5.13241476,3040.1,3040.0,0.001]
[1765022948593,5.03241476,3040.1,3040.0,0.001]
[1765022952798,0.4632,3040.2,3040.0,0.4982]
[1765022953096,0.82392684,3040.6,3040.0,0.4982]
[1765022953097,0.519,3040.4,3040.1,0.6953]
[1765022953271,1.34292684,3040.4,3040.2,0.4592]
[1765022953466,1.34292684,3040.4,3040.1,1.1545]
[1765022953801,0.1153,3040.2,3040.0,0.001]
[1765022954167,1.34292684,3040.4,3040.0,0.001]
[1765022954396,1.34292684,3040.4,3040.0,0.4602]
[1765022954898,0.519,3040.4,3040.3,0.4972]
[1765022955225,0.519,3040.4,3040.3,0.9564]
[1765022955402,0.519,3040.4,3040.3,0.4972]
[1765022955700,3.80804091,3040.4,3040.3,0.4972]
[1765022956202,3.28882525,3040.6,3040.3,0.9564]
[1765022956393,3.28882525,3040.6,3040.5,0.4972]
[1765022956597,3.80782525,3040.6,3040.3,0.4592]
[1765022957876,0.1153,3040.4,3040.1,0.1981]
[1765022958305,0.054,3040.2,3040.0,0.001]
[1765022958480,22.13617511,3040.1,3040.0,0.001]
[1765022958685,18.4985877,3040.1,3040.0,0.001]
[1765022959706,25.98190518,3040.1,3040.0,0.001]
[1765022960478,0.2,3039.8,3039.7,0.001]
[1765022960686,19.37059414,3039.8,3039.7,0.001]
[1765022960911,20.84242086,3039.8,3039.7,0.001]
[1765022961279,21.97351897,3039.8,3039.7,0.001]
[1765022961810,43.16831008,3039.8,3039.7,0.001]
[1765022962223,46.45800019,3039.8,3039.0,0.001]
[1765022962380,23.16751125,3039.1,3039.0,0.001]
[1765022962578,24.37849625,3039.1,3039.0,0.001]
[1765022962901,24.16447525,3039.1,3039.0,0.001]
[1765022963211,24.29626249,3039.1,3039.0,0.001]
[1765022963414,23.35669749,3039.1,3039.0,0.001]
[1765022963602,31.05343503,3039.1,3039.0,0.001]
[1765022963908,30.49481803,3039.1,3039.0,0.001]
[1765022964109,29.95481803,3039.1,3039.0,0.001]
[1765022964678,29.83617503,3039.1,3039.0,0.001]
[1765022965075,11.76168089,3039.1,3039.0,0.001]
[1765022965307,9.36302589,3039.1,3039.0,0.001]
[1765022965479,9.68302589,3039.1,3039.0,0.001]
[1765022965690,13.98631289,3039.1,3039.0,0.001]
[1765022965898,14.08631289,3039.1,3039.0,0.001]
[1765022966102,13.58531289,3039.1,3039.0,0.001]
[1765022966510,11.34234889,3039.1,3039.0,0.001]
[1765022966715,8.72918189,3039.1,3039.0,0.001]
[1765022966909,9.24918189,3039.1,3039.0,0.001]
[1765022967929,6.54515989,3039.1,3039.0,0.9574]
[1765022968083,4.34773906,3039.1,3039.0,0.9574]
[1765022968498,4.34773906,3039.1,3039.0,0.4982]
[1765022968901,12.17099106,3039.1,3039.0,0.001]
[1765022969220,13.01188517,3039.1,3039.0,0.001]
[1765022973508,21.65846617,3039.1,3039.0,0.001]
[1765022973692,21.63047217,3039.1,3039.0,0.001]
[1765022973893,21.74577217,3039.1,3039.0,0.001]
[1765022974790,23.30440517,3039.1,3039.0,0.001]
[1765022975391,22.76440517,3039.1,3039.0,0.001]
[1765022975798,22.74577217,3039.1,3039.0,0.001]
[1765022976518,7.80032917,3039.1,3039.0,0.001]
[1765022976821,5.28863317,3039.1,3039.0,0.001]
[1765022977136,1.24559411,3039.1,3039.0,0.9574]
[1765022977430,3.81044782,3039.1,3039.0,0.9574]
[1765022978022,3.29044782,3039.1,3039.0,0.9574]
[1765022978191,3.81044782,3039.1,3039.0,0.9574]
[1765022978711,3.29044782,3039.1,3039.0,0.9574]
[1765022978918,3.81044782,3039.1,3039.0,0.9574]
[1765022982714,3.81044782,3039.1,3039.0,0.4982]
[1765022982915,3.91044782,3039.1,3039.0,0.4982]
[1765022983107,5.23372193,3039.1,3039.0,0.001]
[1765022983508,5.36550613,3039.1,3039.0,0.001]
[1765022983808,5.25020613,3039.1,3039.0,0.4824]
[1765022984026,5.11842193,3039.1,3039.0,0.4824]
[1765022984220,4.59842193,3039.1,3039.0,0.001]
[1765022984428,10.97028488,3039.1,3039.0,0.001]
[1765022984945,26.26169088,3039.1,3039.0,0.001]
[1765022985289,26.87789088,3039.1,3039.0,0.001]
[1765022985536,27.60348499,3039.1,3039.0,0.001]
[1765022986042,24.66723899,3039.1,3039.0,0.001]
[1765022986912,31.41095599,3039.1,3039.0,0.001]
[1765022987114,29.27341499,3039.1,3039.0,0.001]
[1765022987840,12.52737899,3039.1,3039.0,0.001]
[1765022988045,30.26966199,3039.1,3039.0,0.001]
[1765022988416,29.79972699,3039.1,3039.0,0.001]
[1765022988623,29.25972699,3039.1,3039.0,0.001]
[1765022991046,30.24611299,3039.1,3039.0,0.001]
[1765022991543,29.03081299,3039.1,3039.0,0.001]
[1765022992030,29.68611299,3039.1,3039.0,0.001]
[1765022992860,21.53308899,3039.1,3039.0,0.001]
[1765022993056,22.46078499,3039.1,3039.0,0.001]
[1765022993627,21.94078499,3039.1,3039.0,0.001]
[1765022993827,17.90321099,3039.1,3039.0,0.001]
[1765022994062,18.03235399,3039.1,3039.0,0.001]
[1765022995064,25.65103699,3039.1,3039.0,0.001]
[1765022995660,25.13103699,3039.1,3039.0,0.001]
[1765022995830,25.15347599,3039.1,3039.0,0.001]
[1765022996161,11.89207899,3039.1,3039.0,0.001]
[1765022996331,25.14780099,3039.1,3039.0,0.001]
[1765022996664,5.72491604,3039.1,3039.0,0.4728]
[1765022996831,4.51694193,3039.1,3039.0,0.4728]
[1765022997031,4.51694193,3039.1,3039.0,0.9242]
[1765022997032,4.53604193,3039.1,3039.0,0.9242]
[1765022997935,4.63604193,3039.1,3039.0,0.9242]
[1765022998633,5.04154593,3039.1,3039.0,0.9242]
[1765023000166,4.94154593,3039.1,3039.0,0.9242]
[1765023002370,4.42154593,3039.1,3039.0,0.9242]
[1765023002536,4.94154593,3039.1,3039.0,0.9242]
[1765023002866,0.72559411,3039.1,3039.0,0.9242]
[1765023003058,4.01604193,3039.1,3039.0,0.9242]
[1765023003260,4.53604193,3039.1,3039.0,0.9242]
[1765023004747,3.81044782,3039.1,3039.0,0.9242]
[1765023008240,5.38809644,3039.1,3039.0,0.001]
[1765023008947,5.28809644,3039.1,3039.0,0.001]
[1765023009147,5.28809644,3039.1,3039.0,0.4728]
[1765023011367,5.28809644,3039.1,3039.0,0.9395]
[1765023016557,0.52,3039.1,3039.0,0.9395]
[1765023017142,3.29034419,3039.2,3039.0,0.9395]
[1765023017342,3.29034419,3039.2,3039.1,1.1043]
[1765023017550,4.63427103,3039.2,3039.1,1.1043]
[1765023025283,0.4524,3039.4,3039.1,1.1043]
[1765023025471,1.34392684,3039.3,3039.2,0.4667]
[1765023025781,7.19578979,3039.3,3039.2,0.4667]
[1765023025977,7.19578979,3039.3,3039.2,0.9232]
[1765023026776,7.29578979,3039.3,3039.2,0.9232]
[1765023028066,7.19578979,3039.3,3039.2,0.9232]
[1765023031089,10.48602109,3039.3,3039.2,0.9232]
[1765023033388,10.58602109,3039.3,3039.2,0.9232]
[1765023033690,10.48602109,3039.3,3039.2,0.9232]
[1765023034056,10.58602109,3039.3,3039.2,0.9232]
[1765023038694,10.48602109,3039.3,3039.2,0.9232]
[1765023038988,15.25617927,3039.3,3039.0,0.001]
[1765023039193,0.82392684,3039.1,3039.0,0.4784]
[1765023039595,0.82392684,3039.1,3039.0,0.942]
[1765023042524,4.11437466,3039.1,3039.0,0.942]
[1765023042834,4.11437466,3039.1,3039.0,0.001]
[1765023042835,28.06388472,3039.1,3039.0,0.001]
[1765023042984,21.60406172,3039.1,3039.0,0.001]
[1765023043181,10.38790488,3039.1,3039.0,0.4646]
[1765023043684,10.85250488,3039.1,3039.0,0.942]
[1765023045094,11.06780488,3039.1,3039.0,0.001]
[1765023045302,10.95250488,3039.1,3039.0,0.001]
[1765023045500,12.35917118,3039.1,3039.0,0.4646]
[1765023045821,12.35917118,3039.1,3039.0,0.942]
[1765023046400,6.50730823,3039.1,3039.0,0.942]
[1765023047900,0.4646,3039.1,3039.0,0.942]
[1765023048090,0.9846,3039.1,3039.0,0.942]
[1765023048494,0.52,3039.1,3039.0,0.942]
[1765023052147,4.23202894,3039.5,3039.0,0.942]
[1765023052148,3.29012337,3039.4,3039.0,0.942]
[1765023052351,0.52,3039.3,3039.1,0.6579]
[1765023052738,0.52,3039.3,3039.2,0.9705]
[1765023053830,1.34392684,3039.3,3039.2,0.9705]
[1765023054334,4.63415814,3039.3,3039.2,0.4926]
[1765023055224,5.61316904,3039.3,3039.2,0.4926]
[1765023057253,5.61316904,3039.3,3039.1,0.18]
[1765023057857,5.61316904,3039.3,3039.1,0.6579]
[1765023061159,5.61316904,3039.3,3039.1,0.18]
[1765023061960,5.61316904,3039.3,3039.1,0.6579]
[1765023062542,5.61316904,3039.3,3039.2,0.4926]
[1765023063365,3.8102313,3039.3,3039.2,0.9705]
[1765023063663,0.52,3039.3,3039.2,0.9705]
[1765023065643,1.34392684,3039.3,3039.2,0.9705]
[1765023068964,0.6579,3039.4,3039.2,0.9705]
[1765023069166,0.82392684,3039.9,3039.3,0.9379]
[1765023069167,0.52,3039.5,3039.3,0.9379]
[1765023069550,0.52,3039.5,3039.4,0.9379]
[1765023070161,0.52,3039.6,3039.4,0.9379]
[1765023070471,0.52,3039.6,3039.5,0.4676]
[1765023070770,0.52,3039.7,3039.5,0.9379]
[1765023071064,0.52,3039.7,3039.6,0.4676]
[1765023071236,0.52,3039.7,3039.6,0.9379]
[1765023075582,4.27749945,3040.0,3039.6,0.9379]
[1765023075764,4.83892382,3040.1,3039.9,0.4703]
[1765023075959,1.58902665,3040.0,3039.7,0.4676]
[1765023076355,1.58902665,3040.0,3039.9,0.4703]
[1765023077066,1.58902665,3040.0,3039.9,0.9379]
[1765023077454,5.82691153,3040.1,3039.9,0.9379]
[1765023077455,0.98798771,3040.1,3039.9,0.9379]
[1765023077654,0.72559411,3040.1,3040.0,0.9379]
[1765023077874,2.23156608,3040.1,3040.0,0.9379]
[1765023078183,2.23156608,3040.1,3040.0,0.4703]
[1765023078672,2.23156608,3040.1,3040.0,0.9379]
[1765023079466,2.23156608,3040.1,3040.0,0.4703]
[1765023079667,5.52093156,3040.1,3040.0,0.4703]
[1765023080692,5.63623156,3040.1,3039.8,0.4676]
[1765023080888,7.39008665,3040.1,3039.8,0.4676]
[1765023081680,7.29008665,3040.1,3039.8,0.4676]
[1765023085289,3.38952551,3040.0,3039.8,0.4676]
[1765023085491,3.28952551,3040.0,3039.8,0.4676]
[1765023087003,3.38952551,3040.0,3039.8,0.4676]
[1765023087304,3.28952551,3040.0,3039.8,0.4676]
[1765023087606,3.28952551,3040.0,3039.6,0.4676]
[1765023088902,4.27747418,3040.0,3039.6,0.4676]
[1765023089408,3.28952551,3040.0,3039.6,0.4676]
[1765023089703,0.98794867,3039.9,3039.6,0.4676]
[1765023090205,3.28952551,3040.0,3039.8,0.4703]
[1765023090436,0.98794867,3039.9,3039.8,0.4703]
[1765023090603,4.27753056,3039.9,3039.8,0.9379]
[1765023093809,3.28947368,3040.0,3039.8,0.9379]
[1765023094183,4.27742235,3040.0,3039.9,0.9379]
[1765023094791,0.98794867,3040.0,3039.9,0.9379]
[1765023097421,4.27742235,3040.0,3039.9,0.9379]
[1765023099180,0.98794867,3040.0,3039.9,0.9379]
[1765023100784,1.50694867,3040.0,3039.9,0.9379]
[1765023106332,0.98794867,3040.0,3039.9,0.9379]
[1765023106828,5.85932659,3040.0,3039.1,0.18]
[1765023107018,0.98697197,3039.8,3039.3,0.4664]
[1765023107413,1.45337197,3039.8,3039.3,0.4664]
[1765023108203,0.98697197,3039.8,3039.3,0.4664]
[1765023108404,4.27780499,3039.7,3039.3,0.4664]
[1765023110500,10.12602888,3039.7,3039.3,0.4664]
[1765023113431,15.55764798,3039.7,3039.1,0.18]
[1765023113634,14.569644,3039.7,3039.4,0.4853]
[1765023113835,0.98811462,3039.6,3039.4,0.4853]
[1765023115023,0.98811462,3039.6,3039.5,0.4619]
[1765023115534,4.27802118,3039.6,3039.5,0.9472]
[1765023118550,5.04214754,3039.6,3039.5,0.9472]
[1765023119050,5.04214754,3039.6,3039.2,0.4853]
[1765023119452,4.05403292,3039.6,3039.2,0.4853]
[1765023119622,3.77532738,3039.5,3039.2,0.4853]
[1765023120022,3.29002738,3039.5,3039.4,0.4619]
[1765023120559,3.77532738,3039.5,3039.4,0.4619]
[1765023122350,3.77532738,3039.5,3039.1,0.18]
[1765023122351,9.62355127,3039.5,3039.1,0.18]
[1765023122555,6.33352389,3039.5,3039.1,0.6653]
[1765023122859,1.50597197,3039.7,3039.1,0.6653]
[1765023122860,5.94822389,3040.2,3039.4,3.75202305]
[1765023123154,0.98795192,3039.9,3039.5,0.4619]
[1765023123339,0.519,3040.1,3039.5,0.9472]
[1765023123549,0.519,3040.1,3040.0,0.4619]
[1765023123723,3.80837107,3040.1,3040.0,0.4619]
[1765023123918,4.79632299,3040.1,3039.6,0.4853]
[1765023124260,4.79534304,3040.1,3039.7,0.4853]
[1765023124459,5.84822389,3040.0,3039.4,3.29012305]
[1765023124648,6.83617581,3040.0,3039.4,0.65803687]
[1765023124848,6.83617581,3040.0,3039.4,3.94813702]
[1765023125257,5.84822389,3039.8,3039.4,0.65803687]
[1765023125646,5.84822389,3039.8,3039.5,0.4853]
[1765023125829,5.84822389,3039.8,3039.4,0.65803687]
[1765023126030,5.84822389,3039.8,3039.4,1.14333687]
[1765023126524,0.1153,3039.5,3039.1,0.18]
[1765023126725,0.1153,3039.5,3039.1,0.6653]
[1765023127022,5.84822389,3039.4,3039.1,0.6653]
[1765023127269,5.84822389,3039.4,3039.1,0.18]
[1765023127636,0.98697197,3039.3,3039.0,0.001]
[1765023128660,6.83519586,3039.3,3039.0,0.4863]
[1765023128866,5.84822389,3039.3,3039.0,0.4863]
[1765023130467,5.84822389,3039.3,3039.2,0.4809]
[1765023131436,5.84822389,3039.3,3039.0,0.4863]
[1765023131863,5.84822389,3039.3,3039.0,0.001]
[1765023132165,6.83519586,3039.3,3039.0,0.001]
[1765023132731,6.83519586,3039.3,3039.0,0.4542]
[1765023134369,5.84822389,3039.1,3039.0,0.001]
[1765023135163,5.96352389,3039.1,3039.0,0.001]
[1765023136069,6.41772389,3039.1,3039.0,0.001]
[1765023136971,9.70817171,3039.1,3039.0,0.001]
[1765023137837,6.41772389,3039.1,3039.0,0.001]
[1765023138033,10.83846436,3039.1,3039.0,0.001]
[1765023144877,11.03846436,3039.1,3039.0,0.001]
[1765023145376,10.72316436,3039.1,3039.0,0.001]
[1765023145752,10.82316436,3039.1,3039.0,0.001]
[1765023145957,10.93846436,3039.1,3039.0,0.001]
[1765023147277,11.03846436,3039.1,3039.0,0.001]
[1765023147989,11.44396836,3039.1,3039.0,0.001]
[1765023148178,12.16956247,3039.1,3039.0,0.001]
[1765023148381,30.90810747,3039.1,3039.0,0.001]
[1765023149172,30.60506247,3039.1,3039.0,0.001]
[1765023149377,27.60964147,3039.1,3039.0,0.001]
[1765023149857,27.53090447,3039.1,3039.0,0.001]
[1765023150057,27.64620447,3039.1,3039.0,0.001]
[1765023150266,27.94860047,3039.1,3039.0,0.001]
[1765023150873,27.02153247,3039.1,3039.0,0.001]
[1765023151091,27.54053247,3039.1,3039.0,0.001]
[1765023151270,12.80386247,3039.1,3039.0,0.001]
[1765023151477,26.37512047,3039.1,3039.0,0.001]
[1765023152605,0.72559411,3039.0,3038.8,0.001]
[1765023152759,37.14376777,3038.9,3038.8,0.001]
[1765023152959,35.16800577,3038.9,3038.8,0.001]
[1765023153170,35.29980126,3038.9,3038.8,0.001]
[1765023153490,0.1,3038.2,3037.8,0.4542]
[1765023153695,5.84822389,3037.9,3037.8,0.4542]
[1765023154196,5.84822389,3037.9,3037.8,0.9351]
[1765023154411,5.84822389,3037.9,3037.8,0.4819]
[1765023154616,5.94822389,3037.9,3037.8,0.4819]
[1765023154911,5.94822389,3037.9,3037.8,0.9351]
[1765023155410,9.13997147,3037.9,3037.8,0.9351]
[1765023156615,10.07507147,3037.9,3037.8,0.9351]
[1765023163023,6.78332389,3037.9,3037.8,0.9351]
[1765023163233,5.84822389,3038.5,3037.8,0.9351]
[1765023163527,2.44207197,3038.4,3038.1,0.1974]
[1765023163938,5.84822389,3038.3,3037.8,0.001]
[1765023164151,5.84822389,3038.1,3037.9,0.4648]
[1765023164518,5.84822389,3038.1,3038.0,0.4688]
[1765023164727,0.4648,3038.0,3037.8,0.001]
[1765023164925,5.84822389,3037.9,3037.8,0.4658]
[1765023165420,5.84822389,3037.9,3037.8,0.9346]
[1765023166275,5.84822389,3037.9,3037.8,0.4698]
[1765023166627,6.36822389,3037.9,3037.8,0.9346]
[1765023168357,0.52,3037.9,3037.8,0.9346]
[1765023170120,3.81174758,3037.9,3037.8,0.9346]
[1765023172728,11.86885792,3037.9,3037.8,0.001]
[1765023172930,10.94335392,3037.9,3037.8,0.001]
[1765023173129,1.66019411,3037.9,3037.8,0.9337]
[1765023173364,1.4546,3037.9,3037.8,0.9337]
[1765023174431,6.25412355,3037.9,3037.8,0.001]
[1765023174634,19.65402455,3037.9,3037.8,0.001]
[1765023174860,21.940969,3037.9,3037.8,0.001]
[1765023175356,14.658757,3037.9,3037.8,0.001]
[1765023175561,14.758757,3037.9,3037.8,0.001]
[1765023176559,12.47181255,3037.9,3037.8,0.001]
[1765023176773,17.11474655,3037.9,3037.8,0.001]
[1765023177065,15.15724655,3037.9,3037.8,0.001]
[1765023177262,15.67724655,3037.9,3037.8,0.001]
[1765023177564,16.50284066,3037.9,3037.8,0.001]
[1765023177765,20.88525766,3037.9,3037.8,0.001]
[1765023178062,21.00055766,3037.9,3037.8,0.001]
[1765023178763,7.29501766,3037.9,3037.8,0.001]
[1765023178964,28.31100066,3037.9,3037.8,0.001]
[1765023179274,23.03995066,3037.9,3037.8,0.001]
[1765023179767,7.29501766,3037.9,3037.8,0.001]
[1765023179968,37.29501766,3037.9,3037.8,0.001]
[1765023183202,37.17971766,3037.9,3037.8,0.001]
[1765023183382,37.29501766,3037.9,3037.8,0.001]
[1765023185002,6.65971766,3037.9,3037.8,0.001]
[1765023185201,7.06441766,3037.9,3037.8,0.001]
[1765023185386,11.06278566,3037.9,3037.8,0.001]
[1765023186059,17.74952766,3037.9,3037.8,0.001]
[1765023186661,17.84952766,3037.9,3037.8,0.001]
[1765023186989,7.17971766,3037.9,3037.8,0.001]
[1765023187183,17.3440648,3037.9,3037.8,0.001]
[1765023187381,13.5893698,3037.9,3037.8,0.4824]
[1765023187691,8.5207248,3037.9,3037.8,0.9337]
[1765023187895,6.55891366,3037.9,3037.8,0.9337]
[1765023188602,5.73331955,3037.9,3037.8,0.9337]
[1765023189998,5.73331955,3037.9,3037.8,0.4824]
[1765023190205,2.44157197,3037.9,3037.8,0.9565]
[1765023190402,5.73331955,3037.9,3037.8,0.9565]
[1765023193500,2.44157197,3037.9,3037.8,0.9565]
[1765023194197,5.85520507,3038.1,3037.8,0.9565]
[1765023194198,3.29160094,3038.1,3037.8,0.9565]
[1765023194398,4.53719505,3038.1,3038.0,0.4616]
[1765023194898,4.01719505,3038.1,3038.0,0.9357]
[1765023195079,4.53719505,3038.1,3038.0,0.9357]
[1765023195279,5.01129505,3038.1,3038.0,0.9357]
[1765023195486,1.71969411,3038.1,3038.0,0.9357]
[1765023196220,5.011225,3038.1,3038.0,0.9357]
[1765023199709,4.28563089,3038.1,3038.0,0.4616]
[1765023200018,4.28563089,3038.1,3038.0,0.9357]
[1765023203334,0.4741,3038.1,3038.0,0.9357]
[1765023203632,0.9941,3038.1,3038.0,0.9357]
[1765023203833,1.98107197,3038.1,3038.0,0.9357]
[1765023204928,5.27260286,3038.1,3038.0,0.9357]
[1765023205428,0.9941,3038.1,3038.0,0.9357]
[1765023205635,1.98107197,3038.1,3038.0,0.9357]
[1765023207302,0.4741,3038.1,3038.0,0.9357]
[1765023210033,3.81142699,3038.2,3038.0,0.9357]
[1765023210224,3.81142699,3038.2,3038.1,1.1161]
[1765023213554,3.81142699,3038.2,3037.8,0.001]
[1765023213555,3.92672699,3038.2,3037.8,0.001]
[1765023213754,0.98697197,3038.0,3037.8,0.4751]
[1765023214125,0.98697197,3038.0,3037.9,0.4616]
[1765023215021,0.98697197,3038.0,3037.9,0.9357]
[1765023215859,0.98697197,3038.0,3037.8,0.001]
[1765023216351,0.98697197,3038.0,3037.8,0.4751]
[1765023216548,0.98697197,3038.0,3037.9,0.4616]
[1765023217054,4.3939112,3038.0,3037.8,0.001]
[1765023218152,4.2786112,3038.0,3037.8,0.4751]
[1765023218358,0.98697197,3038.0,3037.9,0.4616]
[1765023219461,0.98697197,3038.0,3037.9,0.9258]
[1765023220245,4.2786112,3038.0,3037.9,0.9258]
[1765023221468,4.2786112,3038.0,3037.9,0.4616]
[1765023225872,4.2786112,3038.0,3037.8,0.001]
[1765023225873,5.83594677,3038.0,3037.8,0.001]
[1765023226071,0.1153,3037.9,3037.8,0.001]
[1765023226772,0.6805,3037.9,3037.8,0.001]
[1765023228776,3.97224758,3037.9,3037.8,0.001]
[1765023228964,4.81715646,3037.9,3037.8,0.001]
[1765023230369,10.67334554,3037.9,3037.8,0.001]
[1765023232281,10.77334554,3037.9,3037.8,0.001]
[1765023232983,10.67334554,3037.9,3037.8,0.001]
[1765023233460,10.55804554,3037.9,3037.8,0.496]
[1765023233667,3.29121733,3038.4,3037.8,0.9485]
[1765023233867,4.7981722,3038.5,3038.3,0.6763]
[1765023234389,5.52376631,3038.5,3038.4,0.9475]
[1765023234706,1.40189411,3038.5,3038.4,0.9475]
[1765023234873,0.6763,3038.5,3038.4,0.9475]
[1765023235196,3.81102292,3038.6,3038.4,0.9475]
[1765023235556,3.81101649,3038.6,3038.5,0.495]
[1765023235766,0.52,3038.6,3038.5,0.9475]
[1765023235965,3.81098927,3038.6,3038.5,0.9475]
[1765023236197,0.52,3038.6,3038.5,0.9475]
[1765023236366,3.81098927,3038.6,3038.5,0.9475]
[1765023237693,3.81098927,3038.6,3038.3,0.1813]
[1765023237899,3.81098927,3038.6,3038.5,0.495]
[1765023240497,9.66717835,3038.6,3038.5,0.495]
[1765023240710,9.98777835,3038.6,3038.3,0.4525]
[1765023240916,0.98697197,3038.4,3038.1,0.6338]
[1765023241410,0.98697197,3038.4,3038.3,0.495]
[1765023242307,10.13438673,3038.4,3037.8,0.001]
[1765023242481,0.98697197,3038.2,3037.9,0.4525]
[1765023244805,0.98697197,3038.2,3038.1,0.495]
[1765023245306,4.27839452,3038.2,3038.1,0.495]
[1765023247513,4.59899452,3038.2,3037.8,0.001]
[1765023247682,0.98697197,3038.0,3037.8,0.4535]
[1765023248017,0.98697197,3038.0,3037.8,0.001]
[1765023248242,6.35258908,3037.9,3037.8,0.001]
[1765023248543,6.45258908,3037.9,3037.8,0.001]
[1765023249044,6.78340629,3037.9,3037.8,0.001]
[1765023249344,7.61244412,3037.9,3037.8,0.001]
[1765023249539,11.0041917,3037.9,3037.8,0.001]
[1765023250340,11.0034917,3037.9,3037.8,0.001]
[1765023251048,11.1034917,3037.9,3037.8,0.001]
[1765023251337,11.0034917,3037.9,3037.8,0.001]
[1765023251939,19.9326807,3037.9,3037.8,0.001]
[1765023252318,20.65827481,3037.9,3037.8,0.001]
[1765023253443,20.86377881,3037.9,3037.8,0.001]
[1765023253817,21.06377881,3037.9,3037.8,0.001]
[1765023255019,36.05017281,3037.9,3037.8,0.001]
[1765023255218,24.20136781,3037.9,3037.8,0.001]
[1765023256258,25.04401881,3037.9,3037.8,0.001]
[1765023257127,12.23458981,3037.9,3037.8,0.001]
[1765023257333,23.69085181,3037.9,3037.8,0.001]
[1765023258266,23.65985181,3037.9,3037.8,0.001]
[1765023259067,23.11985181,3037.9,3037.8,0.001]
[1765023260363,23.10902681,3037.9,3037.8,0.001]
[1765023260665,20.32040881,3037.9,3037.8,0.001]